[Event "Live Chess"]
[Site "Chess.com"]
[Date "2024.06.01"]
[Round "-"]
[White "SavagePawn7"]
[Black "Stanbad1"]
[Result "0-1"]
[WhiteElo "680"]
[BlackElo "2667"]
[TimeControl "300"]
[EndTime "13:06:26 PDT"]
[Termination "Stanbad1 won by resignation"]

1. e4 {[%clk 0:04:54]} 1... e6 {[%clk 0:04:59]} 2. d4 {[%clk 0:04:51.8]} 2... d5
{[%clk 0:04:58.5]} 3. c4 {[%clk 0:04:50.3]} 3... dxe4 {[%clk 0:04:54.9]} 4. d5
{[%clk 0:04:48.7]} 4... exd5 {[%clk 0:04:50.9]} 5. cxd5 {[%clk 0:04:45.2]} 5...
Nf6 {[%clk 0:04:44.3]} 6. Nc3 {[%clk 0:04:43.3]} 6... Bd6 {[%clk 0:04:41.3]} 7.
Bc4 {[%clk 0:04:35.8]} 7... O-O {[%clk 0:04:39.2]} 8. f3 {[%clk 0:04:29]} 8...
Re8 {[%clk 0:04:36.5]} 9. fxe4 {[%clk 0:04:16.4]} 9... Nxe4 {[%clk 0:04:34.6]}
10. Nxe4 {[%clk 0:04:14.7]} 10... Qh4+ {[%clk 0:04:33.6]} 11. g3 {[%clk
0:04:11.6]} 11... Qxe4+ {[%clk 0:04:29.3]} 12. Ne2 {[%clk 0:04:08.3]} 12...
Qxh1+ {[%clk 0:04:27.5]} 13. Kd2 {[%clk 0:04:05.8]} 13... Qxd1+ {[%clk
0:04:27.4]} 14. Kxd1 {[%clk 0:04:03.6]} 14... Bg4 {[%clk 0:04:27.3]} 0-1

[Event "Live Chess"]
[Site "Chess.com"]
[Date "2024.06.01"]
[Round "-"]
[White "nigelst"]
[Black "peteopeteo"]
[Result "1-0"]
[WhiteElo "1657"]
[BlackElo "1593"]
[TimeControl "300"]
[EndTime "13:06:32 PDT"]
[Termination "nigelst won by resignation"]

1. e4 {[%clk 0:04:58.1]} 1... c6 {[%clk 0:04:59.2]} 2. d4 {[%clk 0:04:55.7]}
2... d5 {[%clk 0:04:58.4]} 3. exd5 {[%clk 0:04:53]} 3... cxd5 {[%clk 0:04:58.3]}
4. Bd3 {[%clk 0:04:51.7]} 4... Nf6 {[%clk 0:04:57.3]} 5. c3 {[%clk 0:04:50.8]}
5... Nc6 {[%clk 0:04:55.9]} 6. Bf4 {[%clk 0:04:50]} 6... Qb6 {[%clk 0:04:44.9]}
7. Qb3 {[%clk 0:04:46.4]} 7... Qxb3 {[%clk 0:04:43.3]} 8. axb3 {[%clk
0:04:44.6]} 8... e6 {[%clk 0:04:37.4]} 9. Nf3 {[%clk 0:04:43.1]} 9... a6 {[%clk
0:04:36.5]} 10. Nbd2 {[%clk 0:04:39.8]} 10... Be7 {[%clk 0:04:35.8]} 11. O-O
{[%clk 0:04:38.6]} 11... O-O {[%clk 0:04:34.8]} 12. Rfe1 {[%clk 0:04:35.8]}
12... b5 {[%clk 0:04:24.6]} 13. b4 {[%clk 0:04:26.5]} 13... Rd8 {[%clk
0:04:22.7]} 14. Bxb5 {[%clk 0:04:23.3]} 14... axb5 {[%clk 0:04:19.9]} 15. Rxa8
{[%clk 0:04:21]} 15... Bb7 {[%clk 0:04:17.6]} 16. Rxd8+ {[%clk 0:04:18.6]} 16...
Bxd8 {[%clk 0:04:17.5]} 17. Ne5 {[%clk 0:04:17.1]} 17... Nxe5 {[%clk 0:04:07.8]}
18. Bxe5 {[%clk 0:04:14.5]} 18... Nd7 {[%clk 0:04:07]} 19. Bg3 {[%clk
0:04:12.4]} 19... Bg5 {[%clk 0:04:06]} 20. Nf3 {[%clk 0:04:10.8]} 20... Bh6
{[%clk 0:04:03]} 21. Ne5 {[%clk 0:04:09.3]} 21... Nf6 {[%clk 0:03:57.4]} 22. f3
{[%clk 0:04:04.1]} 22... Nh5 {[%clk 0:03:52.3]} 23. Nd7 {[%clk 0:04:00.4]} 23...
f5 {[%clk 0:03:42.1]} 24. Be5 {[%clk 0:03:54]} 24... Bf4 {[%clk 0:03:39]} 25.
Nc5 {[%clk 0:03:49.8]} 25... Bc6 {[%clk 0:03:36.6]} 26. Ra1 {[%clk 0:03:48.2]}
26... Bxe5 {[%clk 0:03:34.4]} 27. dxe5 {[%clk 0:03:46.3]} 27... d4 {[%clk
0:03:21.4]} 28. cxd4 {[%clk 0:03:41.8]} 28... Bd5 {[%clk 0:03:20.1]} 29. Ra7
{[%clk 0:03:37.8]} 29... Nf4 {[%clk 0:03:16.9]} 30. Kf2 {[%clk 0:03:34.3]} 30...
h6 {[%clk 0:03:11.2]} 31. Ra5 {[%clk 0:03:23.4]} 31... Bc4 {[%clk 0:02:32.1]}
32. b3 {[%clk 0:03:18.4]} 32... Nd3+ {[%clk 0:02:16.2]} 33. Nxd3 {[%clk
0:03:04.7]} 33... Bxd3 {[%clk 0:02:15]} 34. Ke3 {[%clk 0:02:59.9]} 34... Bf1
{[%clk 0:02:13.7]} 35. g3 {[%clk 0:02:58.6]} 35... Kf7 {[%clk 0:02:11]} 36. g4
{[%clk 0:02:55.1]} 36... Kg6 {[%clk 0:02:06.7]} 37. Ra7 {[%clk 0:02:48.7]} 37...
fxg4 {[%clk 0:02:00.2]} 38. fxg4 {[%clk 0:02:45.8]} 38... Bh3 {[%clk 0:01:59]}
39. Kf4 {[%clk 0:02:44.4]} 39... h5 {[%clk 0:01:56]} 40. gxh5+ {[%clk 0:02:42]}
40... Kxh5 {[%clk 0:01:55.9]} 41. Rxg7 {[%clk 0:02:38.6]} 41... Bf5 {[%clk
0:01:51.3]} 42. Rb7 {[%clk 0:02:36.3]} 42... Kh4 {[%clk 0:01:48.5]} 43. Rxb5
{[%clk 0:02:32.8]} 43... Kh3 {[%clk 0:01:47.5]} 44. Rc5 {[%clk 0:02:30.5]} 44...
Kxh2 {[%clk 0:01:46.6]} 45. b5 {[%clk 0:02:29.3]} 45... Bc2 {[%clk 0:01:43.4]}
46. b6 {[%clk 0:02:26.7]} 46... Bxb3 {[%clk 0:01:40.1]} 47. b7 {[%clk
0:02:25.5]} 1-0

[Event "Live Chess"]
[Site "Chess.com"]
[Date "2024.06.01"]
[Round "-"]
[White "sebmoran1"]
[Black "MaksymYurii"]
[Result "1-0"]
[WhiteElo "1477"]
[BlackElo "932"]
[TimeControl "300"]
[EndTime "13:06:51 PDT"]
[Termination "sebmoran1 won by checkmate"]

1. e4 {[%clk 0:04:56.9]} 1... e5 {[%clk 0:04:59.5]} 2. Nf3 {[%clk 0:04:55.5]}
2... Nc6 {[%clk 0:04:58.1]} 3. Bb5 {[%clk 0:04:54.3]} 3... d6 {[%clk 0:04:56.5]}
4. d4 {[%clk 0:04:52.8]} 4... Bd7 {[%clk 0:04:52.5]} 5. dxe5 {[%clk 0:04:50.6]}
5... dxe5 {[%clk 0:04:48.3]} 6. Bxc6 {[%clk 0:04:46.8]} 6... Bxc6 {[%clk
0:04:43]} 7. Qxd8+ {[%clk 0:04:46.7]} 7... Rxd8 {[%clk 0:04:42.5]} 8. Nxe5
{[%clk 0:04:45.7]} 8... Bxe4 {[%clk 0:04:38]} 9. O-O {[%clk 0:04:43.5]} 9...
Bxc2 {[%clk 0:04:33.7]} 10. Re1 {[%clk 0:04:42.7]} 10... Be7 {[%clk 0:04:28.8]}
11. Nc3 {[%clk 0:04:34.8]} 11... Nf6 {[%clk 0:04:21.5]} 12. Bg5 {[%clk
0:04:33.7]} 12... Bb4 {[%clk 0:04:17.1]} 13. Bxf6 {[%clk 0:04:31.3]} 13... gxf6
{[%clk 0:04:15]} 14. Nc6+ {[%clk 0:04:29]} 14... Kf8 {[%clk 0:04:08.4]} 15. Nxd8
{[%clk 0:04:28.1]} 15... Bxc3 {[%clk 0:04:05.4]} 16. bxc3 {[%clk 0:04:26.8]}
16... Kg7 {[%clk 0:04:03.8]} 17. Rac1 {[%clk 0:04:23.9]} 17... Bd3 {[%clk
0:03:53.1]} 18. Nxb7 {[%clk 0:04:21.8]} 18... Ba6 {[%clk 0:03:50.1]} 19. Nc5
{[%clk 0:04:20.4]} 19... Bc8 {[%clk 0:03:46.7]} 20. Re7 {[%clk 0:04:17.1]} 20...
Rg8 {[%clk 0:03:43.5]} 21. Rxc7 {[%clk 0:04:15.1]} 21... Bf5 {[%clk 0:03:37.1]}
22. Re1 {[%clk 0:04:07.2]} 22... Rd8 {[%clk 0:03:29.2]} 23. h3 {[%clk
0:03:59.8]} 23... h5 {[%clk 0:03:22.3]} 24. Ne6+ {[%clk 0:03:57.7]} 24... Bxe6
{[%clk 0:03:17.1]} 25. Rxe6 {[%clk 0:03:57]} 25... Kg6 {[%clk 0:03:13.7]} 26.
Ree7 {[%clk 0:03:55.4]} 26... h4 {[%clk 0:03:04]} 27. Rxf7 {[%clk 0:03:53.5]}
27... f5 {[%clk 0:03:02.2]} 28. Rg7+ {[%clk 0:03:52.5]} 28... Kh5 {[%clk
0:03:00.5]} 29. Rxa7 {[%clk 0:03:51.8]} 29... f4 {[%clk 0:02:58.8]} 30. Rh7+
{[%clk 0:03:49.5]} 30... Kg5 {[%clk 0:02:57.6]} 31. c4 {[%clk 0:03:48.8]} 31...
f3 {[%clk 0:02:55.4]} 32. gxf3 {[%clk 0:03:47.2]} 32... Kf4 {[%clk 0:02:53.6]}
33. c5 {[%clk 0:03:44.7]} 33... Kxf3 {[%clk 0:02:52.6]} 34. Raf7+ {[%clk
0:03:40.3]} 34... Ke2 {[%clk 0:02:48.9]} 35. c6 {[%clk 0:03:39.4]} 35... Ke1
{[%clk 0:02:39.5]} 36. c7 {[%clk 0:03:36.1]} 36... Rd1 {[%clk 0:02:37.8]} 37.
Re7+ {[%clk 0:03:30.7]} 37... Kd2+ {[%clk 0:02:36.3]} 38. Kg2 {[%clk 0:03:28.2]}
38... Rc1 {[%clk 0:02:32.1]} 39. Rd7+ {[%clk 0:03:27.1]} 39... Ke2 {[%clk
0:02:30.2]} 40. Rhe7# {[%clk 0:03:26]} 1-0

[Event "Live Chess"]
[Site "Chess.com"]
[Date "2024.06.01"]
[Round "-"]
[White "GoldsmanB"]
[Black "AndrewBak1"]
[Result "0-1"]
[WhiteElo "1088"]
[BlackElo "1835"]
[TimeControl "300"]
[EndTime "13:07:00 PDT"]
[Termination "AndrewBak1 won by resignation"]

1. d4 {[%clk 0:04:59.1]} 1... d5 {[%clk 0:04:57.1]} 2. Bf4 {[%clk 0:04:57.5]}
2... Nf6 {[%clk 0:04:56.4]} 3. e3 {[%clk 0:04:56.1]} 3... c5 {[%clk 0:04:55]} 4.
c3 {[%clk 0:04:54]} 4... Nc6 {[%clk 0:04:53.9]} 5. Nf3 {[%clk 0:04:52.3]} 5...
Qb6 {[%clk 0:04:52.5]} 6. b3 {[%clk 0:04:49.6]} 6... Bf5 {[%clk 0:04:50.4]} 7.
Bd3 {[%clk 0:04:47.4]} 7... Ne4 {[%clk 0:04:47.6]} 8. O-O {[%clk 0:04:42.2]}
8... h6 {[%clk 0:04:43.1]} 9. dxc5 {[%clk 0:04:39.1]} 9... Qxc5 {[%clk
0:04:40.2]} 10. b4 {[%clk 0:04:35.7]} 10... Qb6 {[%clk 0:04:33.4]} 11. Nbd2
{[%clk 0:04:30.4]} 11... Nxc3 {[%clk 0:04:26.2]} 12. Qc2 {[%clk 0:04:19.5]}
12... Ne2+ {[%clk 0:04:18.2]} 13. Kh1 {[%clk 0:04:12.5]} 13... Nxb4 {[%clk
0:04:12.6]} 14. Qb1 {[%clk 0:04:06.9]} 14... Bxd3 {[%clk 0:04:10]} 0-1

[Event "Live Chess"]
[Site "Chess.com"]
[Date "2024.06.01"]
[Round "-"]
[White "JanMur7"]
[Black "dl_chess"]
[Result "1-0"]
[WhiteElo "2316"]
[BlackElo "1183"]
[TimeControl "300"]
[EndTime "13:07:12 PDT"]
[Termination "JanMur7 won on time"]

1. c4 {[%clk 0:04:57.8]} 1... Nf6 {[%clk 0:04:54.3]} 2. Nc3 {[%clk 0:04:56.8]}
2... g6 {[%clk 0:04:52.8]} 3. d4 {[%clk 0:04:55]} 3... Bg7 {[%clk 0:04:52]} 4.
e4 {[%clk 0:04:53.9]} 4... d6 {[%clk 0:04:51.3]} 5. Be2 {[%clk 0:04:51.5]} 5...
O-O {[%clk 0:04:50.2]} 6. Bg5 {[%clk 0:04:50.4]} 6... Nbd7 {[%clk 0:04:39.6]} 7.
g4 {[%clk 0:04:48.1]} 7... h6 {[%clk 0:04:32.2]} 8. Be3 {[%clk 0:04:46.1]} 8...
e5 {[%clk 0:04:24]} 9. d5 {[%clk 0:04:44.2]} 9... a6 {[%clk 0:04:04]} 10. h4
{[%clk 0:04:41.7]} 10... Nc5 {[%clk 0:03:45.8]} 11. f3 {[%clk 0:04:39.2]} 11...
c6 {[%clk 0:03:33.1]} 12. h5 {[%clk 0:04:37.2]} 12... g5 {[%clk 0:03:27]} 13.
Nh3 {[%clk 0:04:35.2]} 13... cxd5 {[%clk 0:03:22.7]} 14. cxd5 {[%clk 0:04:32.8]}
14... Bd7 {[%clk 0:03:10]} 15. b4 {[%clk 0:04:19.1]} 15... Ncxe4 {[%clk
0:01:57.1]} 16. Nxe4 {[%clk 0:04:12.7]} 16... Nxe4 {[%clk 0:01:53]} 17. fxe4
{[%clk 0:04:12.6]} 17... Rc8 {[%clk 0:01:46.5]} 18. O-O {[%clk 0:03:40.2]} 18...
Rc3 {[%clk 0:01:22.1]} 19. Qd2 {[%clk 0:03:37.3]} 19... Qc7 {[%clk 0:01:08.6]}
20. Rfc1 {[%clk 0:03:33.9]} 20... Rc8 {[%clk 0:01:04.7]} 21. Rxc3 {[%clk
0:03:21.3]} 21... Qxc3 {[%clk 0:01:02.5]} 22. Rc1 {[%clk 0:03:20.4]} 22... Qxd2
{[%clk 0:00:57.7]} 23. Rxc8+ {[%clk 0:03:18.8]} 23... Bxc8 {[%clk 0:00:52.9]}
24. Bxd2 {[%clk 0:03:18.7]} 24... Bd7 {[%clk 0:00:49.7]} 25. Nf2 {[%clk
0:03:16.5]} 25... b5 {[%clk 0:00:43.1]} 26. Be3 {[%clk 0:03:14.8]} 26... Bc8
{[%clk 0:00:40.2]} 27. Bb6 {[%clk 0:03:12.6]} 27... f6 {[%clk 0:00:38.9]} 28.
Bc7 {[%clk 0:03:10.7]} 28... Bf8 {[%clk 0:00:37.4]} 29. Kg2 {[%clk 0:03:05.6]}
29... Kf7 {[%clk 0:00:36.5]} 30. Kf3 {[%clk 0:03:04.1]} 30... Ke8 {[%clk
0:00:35.7]} 31. Nd1 {[%clk 0:03:02.5]} 31... Kd7 {[%clk 0:00:34.8]} 32. Bb6
{[%clk 0:03:01.7]} 32... Be7 {[%clk 0:00:29.7]} 33. Nc3 {[%clk 0:02:53.8]} 33...
Bb7 {[%clk 0:00:18.7]} 34. a4 {[%clk 0:02:51.9]} 34... Kc8 {[%clk 0:00:16.1]}
35. axb5 {[%clk 0:02:50.7]} 35... axb5 {[%clk 0:00:14.5]} 36. Bxb5 {[%clk
0:02:50.2]} 36... Kb8 {[%clk 0:00:11.1]} 37. Bc6 {[%clk 0:02:48.9]} 37... Ka8
{[%clk 0:00:09.4]} 38. Nb5 {[%clk 0:02:44.3]} 38... Bxc6 {[%clk 0:00:07.6]} 39.
dxc6 {[%clk 0:02:42.6]} 39... Kb8 {[%clk 0:00:05.6]} 40. c7+ {[%clk 0:02:40.8]}
40... Kc8 {[%clk 0:00:04.2]} 41. Na7+ {[%clk 0:02:40.3]} 41... Kb7 {[%clk
0:00:01.4]} 42. c8=Q+ {[%clk 0:02:40.2]} 1-0

[Event "Live Chess"]
[Site "Chess.com"]
[Date "2024.06.01"]
[Round "-"]
[White "Pedrada88"]
[Black "Dhaydon19"]
[Result "1/2-1/2"]
[WhiteElo "2546"]
[BlackElo "2664"]
[TimeControl "300"]
[EndTime "13:07:14 PDT"]
[Termination "Game drawn by repetition"]

1. Nf3 {[%clk 0:04:53.4]} 1... Nf6 {[%clk 0:04:59.6]} 2. c4 {[%clk 0:04:52.6]}
2... b6 {[%clk 0:04:58.9]} 3. Nc3 {[%clk 0:04:52.1]} 3... Bb7 {[%clk 0:04:58.6]}
4. d3 {[%clk 0:04:51.6]} 4... e6 {[%clk 0:04:58.2]} 5. e4 {[%clk 0:04:51.1]}
5... c5 {[%clk 0:04:54.9]} 6. Bf4 {[%clk 0:04:49.9]} 6... d6 {[%clk 0:04:53.9]}
7. Be2 {[%clk 0:04:49.1]} 7... Nc6 {[%clk 0:04:52.9]} 8. O-O {[%clk 0:04:48]}
8... Be7 {[%clk 0:04:52.4]} 9. Qd2 {[%clk 0:04:47.2]} 9... O-O {[%clk
0:04:52.1]} 10. h3 {[%clk 0:04:46.7]} 10... e5 {[%clk 0:04:51.4]} 11. Bh2 {[%clk
0:04:45.4]} 11... Nd4 {[%clk 0:04:51]} 12. Nxd4 {[%clk 0:04:44.1]} 12... cxd4
{[%clk 0:04:48.5]} 13. Nd5 {[%clk 0:04:41.8]} 13... Nxd5 {[%clk 0:04:47.2]} 14.
cxd5 {[%clk 0:04:41.2]} 14... Rc8 {[%clk 0:04:45.8]} 15. f4 {[%clk 0:04:40.5]}
15... Bf6 {[%clk 0:04:37]} 16. Rac1 {[%clk 0:04:38.4]} 16... Qe7 {[%clk
0:04:34]} 17. Bg4 {[%clk 0:04:36.1]} 17... Rxc1 {[%clk 0:04:31.7]} 18. Rxc1
{[%clk 0:04:36]} 18... g6 {[%clk 0:04:28.7]} 19. Qc2 {[%clk 0:04:34.8]} 19...
Ba6 {[%clk 0:04:19.5]} 20. Be2 {[%clk 0:04:15.2]} 20... Rc8 {[%clk 0:04:15.1]}
21. Qd2 {[%clk 0:04:14.5]} 21... Rxc1+ {[%clk 0:04:14.1]} 22. Qxc1 {[%clk
0:04:14.4]} 22... h5 {[%clk 0:04:10.6]} 23. Qc6 {[%clk 0:04:11.9]} 23... Bb7
{[%clk 0:04:08.7]} 24. Qa4 {[%clk 0:04:09.9]} 24... Bc8 {[%clk 0:04:02.5]} 25.
fxe5 {[%clk 0:04:03.7]} 25... dxe5 {[%clk 0:03:50.8]} 26. Bg3 {[%clk 0:03:54.6]}
26... Kg7 {[%clk 0:03:47.6]} 27. Be1 {[%clk 0:03:50.6]} 27... Qc5 {[%clk
0:03:42.5]} 28. Qc6 {[%clk 0:03:41.7]} 28... Qxc6 {[%clk 0:03:31.6]} 29. dxc6
{[%clk 0:03:41.6]} 29... Kf8 {[%clk 0:03:30]} 30. Bb4+ {[%clk 0:03:35.5]} 30...
Be7 {[%clk 0:03:29.2]} 31. Bd2 {[%clk 0:03:30]} 31... Ke8 {[%clk 0:03:27.7]} 32.
a4 {[%clk 0:03:22.6]} 32... a5 {[%clk 0:03:24.6]} 33. Bd1 {[%clk 0:03:20.8]}
33... Be6 {[%clk 0:03:21]} 34. g4 {[%clk 0:03:11.4]} 34... hxg4 {[%clk
0:03:19.5]} 35. Bxg4 {[%clk 0:03:06.7]} 35... Bxg4 {[%clk 0:03:16.2]} 36. hxg4
{[%clk 0:03:06.6]} 36... Kd8 {[%clk 0:03:15.7]} 37. Bh6 {[%clk 0:02:59.6]} 37...
Kc7 {[%clk 0:03:08.4]} 38. Bg7 {[%clk 0:02:58.2]} 38... Bd6 {[%clk 0:03:07.7]}
39. Bh6 {[%clk 0:02:49.7]} 39... Kxc6 {[%clk 0:03:06.4]} 40. Kf2 {[%clk
0:02:48.9]} 40... Kc5 {[%clk 0:02:57.6]} 41. Bd2 {[%clk 0:02:47.2]} 41... Be7
{[%clk 0:02:53.4]} 42. Kf3 {[%clk 0:02:45.2]} 42... Bh4 {[%clk 0:02:52.2]} 43.
Kg2 {[%clk 0:02:38.3]} 43... Bd8 {[%clk 0:02:49.8]} 44. Kf3 {[%clk 0:02:36.9]}
44... Kc6 {[%clk 0:02:49.1]} 45. Ke2 {[%clk 0:02:33.8]} 45... Be7 {[%clk
0:02:48.6]} 46. Kf3 {[%clk 0:02:32.4]} 46... Bb4 {[%clk 0:02:46]} 47. Bg5 {[%clk
0:02:27.1]} 47... b5 {[%clk 0:02:45]} 48. b3 {[%clk 0:02:23]} 48... Bd6 {[%clk
0:02:42.5]} 49. Bd8 {[%clk 0:02:16.9]} 49... Bc7 {[%clk 0:02:33]} 50. axb5+
{[%clk 0:02:10.1]} 50... Kb7 {[%clk 0:02:31.8]} 51. Be7 {[%clk 0:02:02.9]} 51...
Kb6 {[%clk 0:02:30.7]} 52. Bg5 {[%clk 0:01:52.5]} 52... Kxb5 {[%clk 0:02:29.7]}
53. Bd2 {[%clk 0:01:51.2]} 53... a4 {[%clk 0:02:27.2]} 54. bxa4+ {[%clk
0:01:49.9]} 54... Kxa4 {[%clk 0:02:26.9]} 55. Bg5 {[%clk 0:01:45.8]} 55... Kb3
{[%clk 0:02:26]} 56. Ke2 {[%clk 0:01:45.3]} 56... Bd6 {[%clk 0:02:24.2]} 57. Bf6
{[%clk 0:01:43.6]} 57... Kb4 {[%clk 0:02:21.1]} 58. Bg5 {[%clk 0:01:42.4]} 58...
Kb5 {[%clk 0:02:20.7]} 59. Bf6 {[%clk 0:01:41.8]} 59... Kc6 {[%clk 0:02:20.4]}
60. Kf3 {[%clk 0:01:40.1]} 60... Kd7 {[%clk 0:02:20.1]} 61. Bg5 {[%clk
0:01:39.3]} 61... Ke6 {[%clk 0:02:19.8]} 62. Bd2 {[%clk 0:01:37.8]} 62... Bf8
{[%clk 0:02:18.6]} 63. Bc1 {[%clk 0:01:36.7]} 63... Bg7 {[%clk 0:02:18.2]} 64.
Bd2 {[%clk 0:01:36]} 64... Bf6 {[%clk 0:02:17.7]} 65. Bc1 {[%clk 0:01:35]} 65...
Be7 {[%clk 0:02:17.4]} 66. Bd2 {[%clk 0:01:34.4]} 66... Ba3 {[%clk 0:02:17]} 67.
Bg5 {[%clk 0:01:33.2]} 67... f6 {[%clk 0:02:15.9]} 68. Bd2 {[%clk 0:01:31.2]}
68... Kf7 {[%clk 0:02:11.9]} 69. Ke2 {[%clk 0:01:29.2]} 69... f5 {[%clk
0:02:08.6]} 70. gxf5 {[%clk 0:01:26.8]} 70... gxf5 {[%clk 0:02:08.2]} 71. exf5
{[%clk 0:01:26.1]} 71... Kf6 {[%clk 0:02:07.5]} 72. Kf3 {[%clk 0:01:25.5]} 72...
Kxf5 {[%clk 0:02:07.1]} 73. Bh6 {[%clk 0:01:24.8]} 73... Be7 {[%clk 0:02:05.5]}
74. Bd2 {[%clk 0:01:23.9]} 74... Bg5 {[%clk 0:02:05.2]} 75. Be1 {[%clk
0:01:23.3]} 75... Bf4 {[%clk 0:02:03.5]} 76. Bb4 {[%clk 0:01:22.2]} 76... Be3
{[%clk 0:02:02.5]} 77. Be1 {[%clk 0:01:21.4]} 77... Bf4 {[%clk 0:02:00.6]} 78.
Bb4 {[%clk 0:01:20.6]} 78... Bg5 {[%clk 0:01:56.4]} 79. Be1 {[%clk 0:01:19.9]}
79... Be7 {[%clk 0:01:55.8]} 80. Bd2 {[%clk 0:01:18.8]} 80... Ba3 {[%clk
0:01:55.2]} 81. Be1 {[%clk 0:01:17.9]} 81... Bb2 {[%clk 0:01:54.9]} 82. Bd2
{[%clk 0:01:17.2]} 82... Bc3 {[%clk 0:01:54.3]} 83. Bc1 {[%clk 0:01:16.7]} 83...
Be1 {[%clk 0:01:47.5]} 84. Bh6 {[%clk 0:01:15.7]} 84... Bh4 {[%clk 0:01:45.8]}
85. Bd2 {[%clk 0:01:14.7]} 85... Bg5 {[%clk 0:01:44.5]} 86. Be1 {[%clk
0:01:14.2]} 1/2-1/2

[Event "Live Chess"]
[Site "Chess.com"]
[Date "2024.06.01"]
[Round "-"]
[White "MagnersCarlsberg2870"]
[Black "defenderalist"]
[Result "1/2-1/2"]
[WhiteElo "1805"]
[BlackElo "1512"]
[TimeControl "300"]
[EndTime "13:07:15 PDT"]
[Termination "Game drawn by agreement"]

1. d4 {[%clk 0:04:56]} 1... Nf6 {[%clk 0:04:58.2]} 2. Nf3 {[%clk 0:04:54.2]}
2... e6 {[%clk 0:04:58.1]} 3. e3 {[%clk 0:04:53.4]} 3... d5 {[%clk 0:04:57.6]}
4. Bd3 {[%clk 0:04:52.5]} 4... c5 {[%clk 0:04:57.1]} 5. c3 {[%clk 0:04:51.3]}
5... Nc6 {[%clk 0:04:55.9]} 6. Nbd2 {[%clk 0:04:49.6]} 6... Bd6 {[%clk
0:04:52.4]} 7. Qe2 {[%clk 0:04:49]} 7... O-O {[%clk 0:04:48.6]} 8. O-O {[%clk
0:04:48.4]} 8... c4 {[%clk 0:04:47.4]} 9. Bc2 {[%clk 0:04:47.5]} 9... b5 {[%clk
0:04:46.4]} 10. e4 {[%clk 0:04:46.9]} 10... Bf4 {[%clk 0:04:41.6]} 11. e5 {[%clk
0:04:44.2]} 11... Ne8 {[%clk 0:04:35.3]} 12. g3 {[%clk 0:04:43]} 12... Bh6
{[%clk 0:04:31.7]} 13. Ne1 {[%clk 0:04:38.2]} 13... f6 {[%clk 0:04:30.8]} 14.
Ndf3 {[%clk 0:04:37.1]} 14... Bxc1 {[%clk 0:04:28.1]} 15. Rxc1 {[%clk
0:04:35.9]} 15... fxe5 {[%clk 0:04:25.9]} 16. Nxe5 {[%clk 0:04:34.6]} 16... Nxe5
{[%clk 0:04:24.3]} 17. Qxe5 {[%clk 0:04:33.7]} 17... Qf6 {[%clk 0:04:19.1]} 18.
Qh5 {[%clk 0:04:32.5]} 18... g6 {[%clk 0:04:10.5]} 19. Qe2 {[%clk 0:04:28.1]}
19... Nd6 {[%clk 0:04:02.7]} 20. f4 {[%clk 0:04:23.3]} 20... Nf5 {[%clk
0:04:00.5]} 21. Nf3 {[%clk 0:04:20.7]} 21... Nh6 {[%clk 0:03:50]} 22. Ne5 {[%clk
0:04:19]} 22... Nf7 {[%clk 0:03:49.1]} 23. Ng4 {[%clk 0:04:11.8]} 23... Qg7
{[%clk 0:03:45.1]} 24. Rce1 {[%clk 0:04:05.8]} 24... Bd7 {[%clk 0:03:41.9]} 25.
Kh1 {[%clk 0:03:59.3]} 25... a5 {[%clk 0:03:38.9]} 26. Ne5 {[%clk 0:03:57.1]}
26... Nxe5 {[%clk 0:03:37.7]} 27. fxe5 {[%clk 0:03:56.1]} 27... b4 {[%clk
0:03:29.4]} 28. Rf2 {[%clk 0:03:47.6]} 28... Rxf2 {[%clk 0:03:27.3]} 29. Qxf2
{[%clk 0:03:46.6]} 29... Rf8 {[%clk 0:03:26]} 30. Qe2 {[%clk 0:03:43]} 30... Qh6
{[%clk 0:03:16.8]} 31. cxb4 {[%clk 0:03:26.6]} 31... axb4 {[%clk 0:03:15.1]} 32.
a3 {[%clk 0:03:25.3]} 32... b3 {[%clk 0:03:08.6]} 33. Bd1 {[%clk 0:03:11.8]}
1/2-1/2

[Event "Live Chess"]
[Site "Chess.com"]
[Date "2024.06.01"]
[Round "-"]
[White "PureDashingOctopus"]
[Black "Duke_of_Bebington"]
[Result "1-0"]
[WhiteElo "2269"]
[BlackElo "1592"]
[TimeControl "300"]
[EndTime "13:07:17 PDT"]
[Termination "PureDashingOctopus won by resignation"]

1. e4 {[%clk 0:04:58.7]} 1... e5 {[%clk 0:04:58.4]} 2. Nf3 {[%clk 0:04:56.9]}
2... Nf6 {[%clk 0:04:57.6]} 3. Nxe5 {[%clk 0:04:55.8]} 3... d6 {[%clk
0:04:56.2]} 4. Nf3 {[%clk 0:04:54.4]} 4... Nxe4 {[%clk 0:04:55.3]} 5. d4 {[%clk
0:04:54.1]} 5... d5 {[%clk 0:04:54.3]} 6. Bd3 {[%clk 0:04:53.7]} 6... Bd6 {[%clk
0:04:53.4]} 7. O-O {[%clk 0:04:52.8]} 7... O-O {[%clk 0:04:52.1]} 8. Nbd2 {[%clk
0:04:52.4]} 8... Nxd2 {[%clk 0:04:50.1]} 9. Bxd2 {[%clk 0:04:51.6]} 9... Bg4
{[%clk 0:04:48.1]} 10. h3 {[%clk 0:04:49.5]} 10... Bh5 {[%clk 0:04:46.2]} 11. c3
{[%clk 0:04:47.7]} 11... Nd7 {[%clk 0:04:44.2]} 12. Re1 {[%clk 0:04:46.8]} 12...
Nf6 {[%clk 0:04:42.8]} 13. Bg5 {[%clk 0:04:42.3]} 13... Bg6 {[%clk 0:04:10.8]}
14. Qc2 {[%clk 0:04:33.1]} 14... Qd7 {[%clk 0:04:02.5]} 15. Bxf6 {[%clk
0:04:22.9]} 15... gxf6 {[%clk 0:04:01.1]} 16. Nh4 {[%clk 0:04:22.5]} 16... Kg7
{[%clk 0:03:58.8]} 17. Bf5 {[%clk 0:04:19.1]} 17... Qc6 {[%clk 0:03:41.1]} 18.
Qe2 {[%clk 0:04:11.6]} 18... Rae8 {[%clk 0:03:39.7]} 19. Qg4 {[%clk 0:04:09.2]}
19... a5 {[%clk 0:03:19.9]} 20. Rxe8 {[%clk 0:04:00.9]} 20... Rxe8 {[%clk
0:03:18.6]} 21. Bd7 {[%clk 0:03:59.5]} 21... Re4 {[%clk 0:03:13.1]} 22. Bxc6
{[%clk 0:03:53.2]} 22... Rxg4 {[%clk 0:03:11.3]} 23. hxg4 {[%clk 0:03:53.1]}
23... bxc6 {[%clk 0:03:08.4]} 24. Nf5+ {[%clk 0:03:52]} 24... Bxf5 {[%clk
0:03:06.8]} 25. gxf5 {[%clk 0:03:51.9]} 25... Kh6 {[%clk 0:03:05.4]} 26. Re1
{[%clk 0:03:46.4]} 26... Kg5 {[%clk 0:03:04.6]} 27. Re8 {[%clk 0:03:45.9]} 27...
Kxf5 {[%clk 0:03:01.8]} 28. Ra8 {[%clk 0:03:44.7]} 28... c5 {[%clk 0:03:00.2]}
29. dxc5 {[%clk 0:03:42.8]} 29... Bxc5 {[%clk 0:02:58.7]} 30. Rxa5 {[%clk
0:03:42.3]} 30... Bb6 {[%clk 0:02:57.9]} 31. Rxd5+ {[%clk 0:03:41.6]} 31... Ke6
{[%clk 0:02:57.6]} 32. Rd8 {[%clk 0:03:40.8]} 1-0